{"text_format":"1","workbook":"xlsx","n_sheets":4,"sheets":["MACROS - TJ-PR","Dados","Resumo","Planilha de Medição Completa"],"not_rendered":{"charts":0,"images":5,"macros":1,"external_links":2,"defined_names":29,"comments":0,"pivot_tables":0},"unopened":[],"bounds":{"document_bytes":16777216,"sheet_cells":100000,"rows_first":2000,"rows_last":500,"rows_between":2000,"halvings":0,"cell_chars":16384,"cell_head_chars":4096},"cells_cut":0,"cells_raw":0,"read":"whole","date_system":"1900"}

{"sheet":"MACROS - TJ-PR","index":0,"n_rows":35,"n_cols":2,"rows_kept":35,"cut":false,"hidden":false,"merged":[]}
[null,"Primeiramente, certifique-se de que as MACROS do Excel estejam habilitadas."]
[null,"OBS1.: Caso a Janela de diálogo ilustrada ao lado apareça, clique em \"Habilitar Macros\"."]
[null,"OBS2.: Não exclua ou renomeie as Abas da planilha. Isso poderá compremeter a utilização das Macros."]
[]
[null,"AJUSTE DAS COMPOSIÇÕES DA BASE SINAPI"]
[null,"Leia atentamente as instruções abaixo:"]
[null,"1. Insira a Planilha: \"SINAPI_Custo_Ref_Composicoes_Analitico_PR[...]\" da data base desejada como cópia em uma nova aba."]
[null,"2. Certifique-se que o nome da aba inserida com a Planilha SINAPI possua o nome \"planilhanull\"."]
[null,"3. Pressione o botão abaixo:"]
[null,"OBS1.: Caso a Janela de diálogo ilustrada ao lado apareça, clique em \"Excluir\"."]
[null,"OBS2.: Esta operação pode demorar alguns minutos."]
[]
[]
[]
[]
[]
[]
[null,"AJUSTE DOS INSUMOS DA BASE SINAPI"]
[null,"Leia atentamente as instruções abaixo:"]
[null,"1. Insira a Planilha: \"SINAPI_Preco_Ref_Insumos_PR[...]\" da data base desejada como cópia em uma nova aba."]
[null,"2. Certifique-se que o nome da aba inserida com a Planilha SINAPI possua o nome \"sheet1\"."]
[null,"3. Pressione o botão abaixo:"]
[null,"OBS1.: Caso a Janela de diálogo ilustrada ao lado apareça, clique em \"Excluir\"."]
[]
[]
[]
[]
[]
[null,"CURVA ABC"]
[null,"Leia atentamente as instruções abaixo:"]
[null,"1. Certifique-se de não aletrar o nome das abas da planilha."]
[null,"OBS1.: Não é necessário fazer ajuste prévio de linhas vazias e afins."]
[null,"OBS2.: Não é necessário fazer ajuste prévio de formatação da tabela (fonte, bordas, preenchimento, ...)."]
[null,"2. Pressione o botão abaixo:"]
[null,"OBS1.: Caso a Janela de diálogo ilustrada ao lado apareça, clique em \"Excluir\"."]

{"sheet":"Dados","index":1,"n_rows":30,"n_cols":12,"rows_kept":30,"cut":false,"hidden":false,"merged":[[27,10,27,20],[29,10,29,20],[15,10,15,20],[13,10,13,20],[23,10,23,20],[25,10,25,20]]}
[]
[]
[]
[{"$f":"IF(B4,1,0)","v":0},false]
[]
[]
[]
[]
[]
[]
[]
[]
[]
[null,null,null,null,null,null,null,"Objeto",null,null,"REFORMA E ADAPTAÇÃO DE ESCADA METÁLICA E INSTALAÇÃO DE ELEVADORES"]
[]
[null,null,null,null,null,null,null,"Localização",null,null,"RUA ANDRÉ DE BARROS, 750 - Centro - Curitiba - PR"]
[]
[null,null,null,null,null,null,null,"Área Construída",null,null,57.2,"m²"]
[]
[]
[]
[]
[]
[null,null,null,null,null,null,null,"Nome",null,null,"Engenheiro Civil e Eletricista João Ricardo Conte"]
[]
[null,null,null,null,null,null,null,"Crea n°",null,null,"PR-84.351/D"]
[]
[null,null,null,null,null,null,null,"Empresa",null,null,"CSC Engenharia Ltda/ Revisão SENAC 09/2022"]
[]
[null,null,null,null,null,null,null,"Telefone de contato",null,null,"41-3109-8022"]

{"sheet":"Resumo","index":2,"n_rows":33,"n_cols":13,"rows_kept":33,"cut":false,"hidden":false,"merged":[[22,3,22,8],[7,2,7,12],[21,3,21,8],[10,3,10,8],[11,3,11,8],[12,3,12,8],[13,3,13,8],[14,3,14,8],[15,3,15,8],[16,3,16,8],[17,3,17,8],[18,3,18,8],[19,3,19,8],[20,3,20,8],[32,2,32,12],[29,2,29,8],[23,3,23,8],[24,3,24,8],[25,3,25,8],[28,3,28,8],[27,3,27,8],[26,3,26,8]]}
[]
[]
[]
[]
[]
[]
[]
[null,null,{"$f":"\"RESUMO - \" & Dados!K14","v":"RESUMO - REFORMA E ADAPTAÇÃO DE ESCADA METÁLICA E INSTALAÇÃO DE ELEVADORES"}]
[]
[]
[null,null,"ITEM","SERVIÇOS/PARCELAS",null,null,null,null,null,"PREÇO UNITÁRIO MÃO DE OBRA","PREÇO UNITÁRIO\nMATERIAL","PREÇO TOTAL","%"]
[null,null,1,{"$f":"VLOOKUP(C12,'Planilha de Medição Completa'!$B:$O,4,FALSE)","v":"ADMINISTRAÇÃO DA OBRA"},null,null,null,null,null,472.3,29164.44,29636.739999999998,3.2673426561769754E-2]
[null,null,2,{"$f":"VLOOKUP(C13,'Planilha de Medição Completa'!$B:$O,4,FALSE)","v":"SERVIÇOS PRELIMINARES E DEMOLIÇÕES"},null,null,null,null,null,26786.870000000003,51816.100000000006,78602.97,8.6656911921891247E-2]
[null,null,3,{"$f":"VLOOKUP(C14,'Planilha de Medição Completa'!$B:$O,4,FALSE)","v":"MOVIMENTO DE TERRA"},null,null,null,null,null,432.33,163.35,595.66,6.5669345770768888E-4]
[null,null,4,{"$f":"VLOOKUP(C15,'Planilha de Medição Completa'!$B:$O,4,FALSE)","v":"FUNDAÇÕES - REFORÇOS PARA ESTRUTURA METÁLICA ELEVADOR"},null,null,null,null,null,2708.23,4509.55,7217.78,7.957339598383982E-3]
[null,null,5,{"$f":"VLOOKUP(C16,'Planilha de Medição Completa'!$B:$O,4,FALSE)","v":"ESTRUTURA DE CONCRETO"},null,null,null,null,null,1108.1299999999999,1779.3999999999999,2887.53,3.1833966691311873E-3]
[null,null,6,{"$f":"VLOOKUP(C17,'Planilha de Medição Completa'!$B:$O,4,FALSE)","v":"PAREDES / PAINÉIS / DIVISÓRIAS"},null,null,null,null,null,36197.42,84294.62,120492.04000000001,0.13283808611263667]
[null,null,7,{"$f":"VLOOKUP(C18,'Planilha de Medição Completa'!$B:$O,4,FALSE)","v":"ESTRUTURA METÁLICA PARA ADEQUAÇÃO ESCADAS"},null,null,null,null,null,6695.74,83431.540000000008,90127.28,9.9362044013344919E-2]
[null,null,8,{"$f":"VLOOKUP(C19,'Planilha de Medição Completa'!$B:$O,4,FALSE)","v":"COBERTURA"},null,null,null,null,null,154.12,13486.91,13641.03,1.5038738806356505E-2]
[null,null,9,{"$f":"VLOOKUP(C20,'Planilha de Medição Completa'!$B:$O,4,FALSE)","v":"ESQUADRIAS DE ALUMÍNIO (PORTAS E JANELAS)"},null,null,null,null,null,675.1,57724.740000000005,58399.839999999997,6.4383696839095783E-2]
[null,null,10,{"$f":"VLOOKUP(C21,'Planilha de Medição Completa'!$B:$O,4,FALSE)","v":"GUARDA CORPO E CORRIMÃO"},null,null,null,null,null,9100.61,19373.43,28474.04,3.1391592154093012E-2]
[null,null,11,{"$f":"VLOOKUP(C22,'Planilha de Medição Completa'!$B:$O,4,FALSE)","v":"IMPERMEABILIZAÇÃO"},null,null,null,null,null,1142.6500000000001,3587.88,4730.53,5.2152370521605504E-3]
[null,null,12,{"$f":"VLOOKUP(C23,'Planilha de Medição Completa'!$B:$O,4,FALSE)","v":"INSTALAÇÕES ELÉTRICAS"},null,null,null,null,null,3481.57,9736.16,13217.73,1.4572065971773579E-2]
[null,null,13,{"$f":"VLOOKUP(C24,'Planilha de Medição Completa'!$B:$O,4,FALSE)","v":"REVESTIMENTO DE PAREDES EXTERNAS"},null,null,null,null,null,471.99,349.07000000000005,821.06000000000006,9.0518874926212112E-4]
[null,null,14,{"$f":"VLOOKUP(C25,'Planilha de Medição Completa'!$B:$O,4,FALSE)","v":"SOLEIRAS EM GRANITO"},null,null,null,null,null,348.17,2946.31,3294.48,3.6320442241359616E-3]
[null,null,15,{"$f":"VLOOKUP(C26,'Planilha de Medição Completa'!$B:$O,4,FALSE)","v":"LASTROS E PISOS"},null,null,null,null,null,1689.1,14744.869999999999,16433.97,1.8117853445194287E-2]
[null,null,16,{"$f":"VLOOKUP(C27,'Planilha de Medição Completa'!$B:$O,4,FALSE)","v":"PINTURA DE PISOS, PAREDES E TETOS"},null,null,null,null,null,2362.02,4369.68,6731.7,7.4214541000752927E-3]
[null,null,17,{"$f":"VLOOKUP(C28,'Planilha de Medição Completa'!$B:$O,4,FALSE)","v":"ELEVADOR"},null,null,null,null,null,129441.57,302030.32999999996,431471.9,0.47568205673489267]
[null,null,18,{"$f":"VLOOKUP(C29,'Planilha de Medição Completa'!$B:$O,4,FALSE)","v":"LIMPEZA FINAL"},null,null,null,null,null,168.5,114.66,283.15999999999997,3.1217358809473383E-4]
[null,null,"TOTAL",null,null,null,null,null,null,223436.42000000004,683623.03999999992,907059.44000000006,0.99999999999999989]
[]
[]
[null,null,{"$f":"TODAY()","v":"2022-11-29"}]

{"sheet":"Planilha de Medição Completa","index":3,"n_rows":162,"n_cols":15,"rows_kept":162,"cut":false,"hidden":false,"merged":[[1,1,1,14],[3,4,3,9],[11,4,11,9],[2,4,2,9],[4,4,4,9],[5,4,5,9],[6,4,6,9],[7,4,7,9],[8,4,8,9],[9,4,9,9],[10,4,10,9]]}
[]
[null,"Serviço Nacional de Aprendizagem Comercial - SENAC/PR"]
[null,null,null,null,"DADOS DO PROJETO"]
[null,null,null,"Objeto:",{"$f":"Dados!K14","v":"REFORMA E ADAPTAÇÃO DE ESCADA METÁLICA E INSTALAÇÃO DE ELEVADORES"}]
[null,null,null,"Endereço:",{"$f":"Dados!K16","v":"RUA ANDRÉ DE BARROS, 750 - Centro - Curitiba - PR"}]
[null,null,null,"Área Construída:",{"$f":"Dados!K18 & \" \" & Dados!L18","v":"57,2 m²"}]
[null,null,null,"Planilha referencial:","SINAPI NÃO DESONERADO 09/2022"]
[null,null,null,"Data da elaboração do orçamento:","03/05/2022 Revisão 27/10/2022"]
[null,null,null,"Empresa / Escritório:",{"$f":"IF(Dados!K28<>0,Dados!K28,\"\")","v":"CSC Engenharia Ltda/ Revisão SENAC 09/2022"}]
[null,null,null,"Orçamentista:",{"$f":"IF(Dados!K24<>0,Dados!K24,\"\")","v":"Engenheiro Civil e Eletricista João Ricardo Conte"}]
[null,null,null,"Contato:",{"$f":"IF(Dados!K30<>0,Dados!K30,\"\")","v":"41-3109-8022"}]
[null,null,null,"CREA:",{"$f":"IF(Dados!K26<>0,Dados!K26,\"\")","v":"PR-84.351/D"}]
[null,"ITEM","REFERÊNCIA","CÓDIGO","DESCRIÇÃO (conforme tabela referêncial)","UNID","QUANT.","CUSTO UNITÁRIO MÃO DE OBRA","CUSTO UNITÁRIO\nMATERIAL","CUSTO UNITÁRIO TOTAL","BDI (%)","PREÇO UNITARIO TOTAL","PREÇO TOTAL MÃO DE OBRA","PREÇO TOTAL\nMATERIAL","PREÇO  TOTAL"]
[null,1,null,null,"ADMINISTRAÇÃO DA OBRA"]
[null,null,null,null,"A ADMINISTRAÇÃO LOCAL SERÁ FATURADA DE ACORDO COM O ANDAMENTO FÍSICO DA OBRA."]
[null,"1.1","Composição Adaptada","COMP.27","ADMINISTRAÇÃO DE OBRA INCLUÍNDO OS SEGUINTES PROFISSIONAIS E SERVIÇOS: ENGENHEIRO CIVIL JÚNIOR CONSIDERADO PELO PERÍODO DA OBRA 3 MESES + 1 MÊS INSTALAÇÃO, START UP E CONCLUSÃO ELEVADOR (PERÍODO DE 5 MESES - FABRICAÇÃO ELEVADOR NÃO CONSIDERADO) - 20 HORAS MESAIS; TÉCNICO DE SEGURANÇA DO TRABALHO CONSIDERADO PELO PERÍODO DA OBRA 3 MESES + 1 MÊS INSTALAÇÃO, START UP E CONCLUSÃO ELEVADOR (PERÍODO DE 5 MESES - FABRICAÇÃO ELEVADOR NÃO CONSIDERADO) - 8 HORAS MENSAIS; ENGENHEIRO AMBIENTAL OU MEIO AMBIENTE (CONSIDERADO 10 HORAS - PARA ELABORAÇÃO E IMPLEMENTAÇÃO DO PGRCC, PCA, PGRS); MESTRE DE OBRAS CONSIDERADO PELO PERÍODO DA OBRA 3 MESES + 1 MÊS INSTALAÇÃO, START UP E CONCLUSÃO ELEVADOR (PERÍODO DE 5 MESES - FABRICAÇÃO ELEVADOR NÃO CONSIDERADO) - 50 HORAS MENSAIS.","%",100,3.8639999999999999,238.60299999999998,242.46700000000001,0.2223,296.37,472.3,29164.44,29636.739999999998]
[null,null,null,null,null,null,null,null,null,null,"Total item 1",296.37,472.3,29164.44,29636.739999999998]
[null,2,null,null,"SERVIÇOS PRELIMINARES E DEMOLIÇÕES"]
[null,"2.1",null,null,"SERVIÇOS PRELIMINARES"]
[null,"2.1.1","Composição Adaptada","COMP.7","PLACAS DE AVISO E SINALIZAÇÃO DO CANTEIRO","CJ",1,248.67,1371.87,1620.54,0.2223,1980.79,303.95,1676.84,1980.79]
[null,"2.1.2","Composição Adaptada","COMP. 44","MOBILIZAÇÃO DE PESSOAL, MÁQUINAS E EQUIPAMENTOS","UD",1,1570.5,241.8,1812.3,0.2223,2215.17,1919.62,295.55,2215.17]
[null,"2.1.3","Composição Adaptada","COMP. 45","DESMOBILIZAÇÃO DE PESSOAL, MÁQUINAS E EQUIPAMENTOS","UD",1,1039.2,276.2,1315.4,0.2223,1607.81,1270.21,337.6,1607.81]
[null,"2.1.4","Composição SINAPI",98459,"TAPUME COM TELHA METÁLICA. AF_05/2018","M2",30,17.93,123.47,141.4,0.2223,172.83,657.48,4527.5200000000004,5185]
[null,"2.1.5","Composição Adaptada","COMP.8","LOCACAO DE ANDAIME METALICO TUBULAR TIPO TORRE","M/MÊS",60,0,0,31.86,0.2223,38.94,0,0,0]
[null,"2.1.6","Composição Adaptada","COMP.9","LOCAÇÃO MENSAL DE ANDAIME METÁLICO TIPO FACHADEIRO, INCLUSIVE MONTAGEM E DESMONTAGEM","M2/MÊS",180,4.68,8.2200000000000006,12.91,0.2223,15.78,1029.67,1808.52,2838.19]
[null,"2.1.7","Composição Adaptada","COMP.11","ESCORAMENTO METÁLICO PARA APOIO DE ESTRUTURA EXISTENTE E QUE RECEBERÁ REFORÇO E/OU ALTERAÇÃO DE GEOMETRIA. CONSIDERADO 1 ESCORA METÁLICA POR METRO QUADRADO DE ÁREA DE ESCADA EXISTENTE.","MÊS",3,68.760000000000005,374.16,442.92,0.2223,541.38,252.14,1372.01,1624.15]
[null,"2.1.8","Composição Adaptada","COMP.13","PONTO DE ENERGIA ELÉTRICA PROVISÓRIA, TRIFASICA 40A, DERIVANDO DE INSTALAÇÃO ELÉTRICA EXISTENTE E INSTALADO EM QUADRO PRÓPRIO NO INTERIOR DO CANTEIRO.","UD",1,334.8,1163.6099999999999,1498.41,0.2223,1831.51,409.23,1422.28,1831.51]
[null,"2.1.9","Composição SINAPI",93207,"EXECUÇÃO DE ESCRITÓRIO EM CANTEIRO DE OBRA EM CHAPA DE MADEIRA COMPENSADA, NÃO INCLUSO MOBILIÁRIO E EQUIPAMENTOS. AF_02/2016","M2",6,241.91,988.91,1230.82,0.2223,1504.43,1774.12,7252.47,9026.59]
[null,"2.1.10","Composição SINAPI",93208,"EXECUÇÃO DE ALMOXARIFADO EM CANTEIRO DE OBRA EM CHAPA DE MADEIRA COMPENSADA, INCLUSO PRATELEIRAS. AF_02/2016","M2",8,177.21,869.83999999999992,1047.05,0.2223,1279.81,1732.83,8505.64,10238.469999999999]
[null,"2.1.11","Composição SINAPI",93210,"EXECUÇÃO DE REFEITÓRIO EM CANTEIRO DE OBRA EM CHAPA DE MADEIRA COMPENSADA, NÃO INCLUSO MOBILIÁRIO E EQUIPAMENTOS. AF_02/2016","M2",8,150.04,494.95000000000005,644.99,0.2223,788.37,1467.15,4839.82,6306.9699999999993]
[null,"2.1.12","Composição SINAPI",93212,"EXECUÇÃO DE SANITÁRIO E VESTIÁRIO EM CANTEIRO DE OBRA EM CHAPA DE MADEIRA COMPENSADA, NÃO INCLUSO MOBILIÁRIO. AF_02/2016","M2",8,248.63,853.17,1101.8,0.2223,1346.73,2431.1999999999998,8342.64,10773.84]
[null,"2.1.13","Composição Adaptada","COMP.12","PLACA DE OBRA EM CHAPA DE ACO GALVANIZADO","M2    ",2,59.2,485.99,545.20000000000005,0.2223,666.4,144.72,1188.05,1332.77]
[null,"2.1.14","Composição Adaptada","COMP.10","PORTÃO PROVISÓRIO DE MADEIRA EM CHAPA COMPENSADA RESINADA 10MM, LARGURA 3M E ALTURA 2M","UD",1,256.14,704.6,960.74,0.2223,1174.31,313.08,861.23,1174.31]
[null,"2.2",null,null,"DEMOLIÇÕES"]
[null,"2.2.1","Composição SINAPI",97625,"DEMOLIÇÃO DE ALVENARIA PARA QUALQUER TIPO DE BLOCO, DE FORMA MECANIZADA, SEM REAPROVEITAMENTO. AF_12/2017","M3",2,8.77,48.88,57.650000000000006,0.2223,70.47,21.44,119.49,140.93]
[null,"2.2.2","Composição SINAPI",97627,"DEMOLIÇÃO DE PILARES E VIGAS EM CONCRETO ARMADO, DE FORMA MECANIZADA COM MARTELETE, SEM REAPROVEITAMENTO. AF_12/2017","M3",3,209.65,104.71,314.36,0.2223,384.24,768.77,383.96,1152.73]
[null,"2.2.3","Composição SINAPI",97629,"DEMOLIÇÃO DE LAJES, DE FORMA MECANIZADA COM MARTELETE, SEM REAPROVEITAMENTO. AF_12/2017","M3",5,100.52,38.409999999999997,138.93,0.2223,169.81,614.33000000000004,234.74,849.07]
[null,"2.2.4","Composição SINAPI",97634,"DEMOLIÇÃO DE REVESTIMENTO CERÂMICO, DE FORMA MECANIZADA COM MARTELETE, SEM REAPROVEITAMENTO. AF_12/2017","M2",25.8,10.039999999999999,3.44,13.479999999999999,0.2223,16.48,316.61,108.48,425.09000000000003]
[null,"2.2.5","Composição SINAPI",97644,"REMOÇÃO DE PORTAS, DE FORMA MANUAL, SEM REAPROVEITAMENTO. AF_12/2017","M2",3.36,7.69,2.5,10.190000000000001,0.2223,12.46,31.58,10.27,41.849999999999994]
[null,"2.2.6","Composição SINAPI",97645,"REMOÇÃO DE JANELAS, DE FORMA MANUAL, SEM REAPROVEITAMENTO. AF_12/2017","M2",26.39,21.19,15.51,36.700000000000003,0.2223,44.86,683.52,500.3,1183.82]
[null,"2.2.7","Composição Adaptada","COMP.32","REMOÇÃO DE SOLEIRA EM GRANITO, DE FORMA MECANIZADA COM MARTELETE, SEM REAPROVEITAMENTO.","M2",0.48,11.9,3.55,15.45,0.2223,18.88,6.98,2.08,9.06]
[null,"2.2.8","Composição SINAPI",97649,"REMOÇÃO DE TELHAS DE FIBROCIMENTO, METÁLICA E CERÂMICA, DE FORMA MECANIZADA, COM USO DE GUINDASTE, SEM REAPROVEITAMENTO. AF_12/2017","M2",36.5,3.29,1.6,4.8900000000000006,0.2223,5.98,146.78,71.38,218.16]
[null,"2.2.9","Composição Adaptada","COMP.26","RETIRADA DE DEGRAUS EM ESTRUTURA METÁLICA, PARA ADEQUAÇÃO DE ESCADA CONFORME PROJETO DE ESTRUTURAL. INCLUSO CORTE E ADEQUAÇÃO DA ESTRUTURA QUE IRÁ PERMANECER PARA RECEBER A ADEQUAÇÃO.","M2",37.299999999999997,57.24,21.71,78.95,0.2223,96.5,2609.67,989.8,3599.4700000000003]
[null,"2.2.10","Composição Adaptada","COMP.40","RETIRADA DE GUARDA CORPO E CORRIMÃO EM ESCADA METÁLICA, PARA ADEQUAÇÃO DE ESCADA CONFORME PROJETO DE ESTRUTURAL. INCLUSO CORTE E ADEQUAÇÃO DA ESTRUTURA QUE IRÁ PERMANECER PARA RECEBER A INSTALAÇÃO DE NOVO GUARDA CORPO E CORRIMÃO.","M2",33,34.380000000000003,13.04,47.42,0.2223,57.96,1386.75,525.98,1912.73]
[null,"2.2.11","Composição Adaptada","COMP. 46","CARGA, TRANSPORTE E DESTINAÇÃO FINAL DE RESÍDUOS PROVENIENTES DE DEMOLIÇÃO","M³",50,12.38,84.69,97.07,0.2223,118.65,756.6,5175.83,5932.43]
[null,"2.2.12","Composição Adaptada","COMP.41","REMOÇÃO DE INSTALAÇÕES MECÂNICAS, ELÉTRICAS E ESTRUTURAS DE ELEVADOR ANTIGO, QUE SERÁ MODERNIZADO","UD",1,5195.3999999999996,1357.2,6552.6,0.2223,8009.24,6350.34,1658.91,8009.25]
[null,null,null,null,null,null,null,null,null,null,"Total item 2",24169.789999999994,27398.77,52211.390000000014,79610.16]
[null,3,null,null,"MOVIMENTO DE TERRA"]
[null,"3.1","Composição SINAPI",93358,"ESCAVAÇÃO MANUAL DE VALA COM PROFUNDIDADE MENOR OU IGUAL A 1,30 M. AF_02/2021","M3",5.2,68.02,25.7,93.72,0.2223,114.55,432.33,163.35,595.66]
[null,null,null,null,null,null,null,null,null,null,"Total item 3",114.55,432.33,163.35,595.66]
[null,4,null,null,"FUNDAÇÕES - REFORÇOS PARA ESTRUTURA METÁLICA ELEVADOR"]
[null,"4.1","Composição SINAPI",93358,"ESCAVAÇÃO MANUAL DE VALA COM PROFUNDIDADE MENOR OU IGUAL A 1,30 M. AF_02/2021","M3",1.65,68.02,25.7,93.72,0.2223,114.55,137.18,51.83,189.01]
[null,"4.2","Composição Adaptada","COMP.14","CONCRETAGEM DE ELEMENTOS ESTRUTURAIS, FCK=25 MPA, PARA VIGAS, PILARES, LAJES MACIÇAS OU NERVURADAS COM USO DE BOMBA EM EDIFICAÇÃO - LANÇAMENTO, ADENSAMENTO E ACABAMENTO. AF_12/2015","M3",1.41,27,496.42,523.41999999999996,0.2223,639.78,46.53,855.55,902.07999999999993]
[null,"4.3","Composição SINAPI",96619,"LASTRO DE CONCRETO MAGRO, APLICADO EM BLOCOS DE COROAMENTO OU SAPATAS, ESPESSURA DE 5 CM. AF_08/2017","M2",4.25,12.43,18.16,30.59,0.2223,37.39,64.569999999999993,94.34,158.91]
[null,"4.4","Composição SINAPI",96531,"FABRICAÇÃO, MONTAGEM E DESMONTAGEM DE FÔRMA PARA BLOCO DE COROAMENTO, EM MADEIRA SERRADA, E=25 MM, 2 UTILIZAÇÕES. AF_06/2017","M2",3.6,50.76,101.43,152.19,0.2223,186.02,223.36,446.32,669.68000000000006]
[null,"4.5","Composição SINAPI",96533,"FABRICAÇÃO, MONTAGEM E DESMONTAGEM DE FÔRMA PARA VIGA BALDRAME, EM MADEIRA SERRADA, E=25 MM, 2 UTILIZAÇÕES. AF_06/2017","M2",8.3000000000000007,41.85,93.740000000000009,135.59,0.2223,165.73,424.57,951,1375.57]
[null,"4.6","Composição SINAPI",97086,"FABRICAÇÃO, MONTAGEM E DESMONTAGEM DE FORMA PARA RADIER, PISO DE CONCRETO OU LAJE SOBRE SOLO, EM MADEIRA SERRADA, 4 UTILIZAÇÕES. AF_09/2021","M2",5.04,83.74,63.959999999999994,147.69999999999999,0.2223,180.53,515.87,394.02,909.89]
[null,"4.7","Composição SINAPI",96543,"ARMAÇÃO DE BLOCO, VIGA BALDRAME E SAPATA UTILIZANDO AÇO CA-60 DE 5 MM - MONTAGEM. AF_06/2017","KG",23.08,7.36,12.170000000000002,19.53,0.2223,23.87,207.63,343.32,550.95000000000005]
[null,"4.8","Composição SINAPI",96544,"ARMAÇÃO DE BLOCO, VIGA BALDRAME OU SAPATA UTILIZANDO AÇO CA-50 DE 6,3 MM - MONTAGEM. AF_06/2017","KG",0.64,5.31,12.46,17.77,0.2223,21.72,4.1500000000000004,9.75,13.9]
[null,"4.9","Composição SINAPI",96545,"ARMAÇÃO DE BLOCO, VIGA BALDRAME OU SAPATA UTILIZANDO AÇO CA-50 DE 8 MM - MONTAGEM. AF_06/2017","KG",6.96,3.85,12.35,16.2,0.2223,19.8,32.75,105.06,137.81]
[null,"4.10","Composição SINAPI",96546,"ARMAÇÃO DE BLOCO, VIGA BALDRAME OU SAPATA UTILIZANDO AÇO CA-50 DE 10 MM - MONTAGEM. AF_06/2017","KG",10.48,2.87,11.419999999999998,14.29,0.2223,17.47,36.76,146.29,183.04999999999998]
[null,"4.11","Composição SINAPI",96547,"ARMAÇÃO DE BLOCO, VIGA BALDRAME OU SAPATA UTILIZANDO AÇO CA-50 DE 12,5 MM - MONTAGEM. AF_06/2017","KG",28.82,2.13,9.8500000000000014,11.98,0.2223,14.64,75.03,346.98,422.01]
[null,"4.12","Composição SINAPI",92768,"ARMAÇÃO DE LAJE DE UMA ESTRUTURA CONVENCIONAL DE CONCRETO ARMADO EM UM EDIFÍCIO DE MÚLTIPLOS PAVIMENTOS UTILIZANDO AÇO CA-60 DE 5,0 MM - MONTAGEM. AF_12/2015","KG",10.66,3.81,11.15,14.96,0.2223,18.29,49.64,145.28,194.92000000000002]
[null,"4.13","Composição SINAPI",92769,"ARMAÇÃO DE LAJE DE UMA ESTRUTURA CONVENCIONAL DE CONCRETO ARMADO EM UM EDIFÍCIO DE MÚLTIPLOS PAVIMENTOS UTILIZANDO AÇO CA-50 DE 6,3 MM - MONTAGEM. AF_12/2015","KG",5.09,2.4300000000000002,11.63,14.06,0.2223,17.190000000000001,15.12,72.36,87.48]
[null,"4.14","Composição SINAPI",92770,"ARMAÇÃO DE LAJE DE UMA ESTRUTURA CONVENCIONAL DE CONCRETO ARMADO EM UM EDIFÍCIO DE MÚLTIPLOS PAVIMENTOS UTILIZANDO AÇO CA-50 DE 8,0 MM - MONTAGEM. AF_12/2015","KG",5.86,1.5,11.67,13.17,0.2223,16.100000000000001,10.74,83.59,94.33]
[null,"4.15","Composição SINAPI",92771,"ARMAÇÃO DE LAJE DE UMA ESTRUTURA CONVENCIONAL DE CONCRETO ARMADO EM UM EDIFÍCIO DE MÚLTIPLOS PAVIMENTOS UTILIZANDO AÇO CA-50 DE 10,0 MM - MONTAGEM. AF_12/2015","KG",1.23,0.92,10.8,11.72,0.2223,14.33,1.38,16.239999999999998,17.619999999999997]
[null,"4.16","Composição Adaptada","COMP.16","ESTACA BROCA DE CONCRETO, DIÂMETRO DE 20CM, ESCAVAÇÃO MANUAL COM TRADO CONCHA, COM ARMADURA DE ARRANQUE CONFORME DETALHAMENTO EM PROJETO E CONCRETO","M",12,28.38,27.46,55.85,0.2223,68.27,416.27,402.77,819.04]
[null,"4.17","Composição SINAPI",95601,"ARRASAMENTO MECANICO DE ESTACA DE CONCRETO ARMADO, DIAMETROS DE ATÉ 40 CM. AF_05/2021","UN",4,13.35,4.83,18.18,0.2223,22.22,65.27,23.61,88.88]
[null,"4.18","Composição Adaptada","COMP.15","ENSAIO DE RESISTÊNCIA A COMPRESSÃO SIMPLES - CONCRETO E/OU GROUT","UD",2,156.02000000000001,8.69,164.72,0.2223,201.34,381.41,21.24,402.65000000000003]
[null,null,null,null,null,null,null,null,null,null,"Total item 4",1779.2399999999996,2708.23,4509.55,7217.78]
[null,5,null,null,"ESTRUTURA DE CONCRETO"]
[null,null,null,null,"ESTRUTURA CONCRETO PILARES E VIGAS REFORÇO POÇO ELEVADOR"]
[null,"5.1","Composição Adaptada","COMP.14","CONCRETAGEM DE ELEMENTOS ESTRUTURAIS, FCK=25 MPA, PARA VIGAS, PILARES, LAJES MACIÇAS OU NERVURADAS COM USO DE BOMBA EM EDIFICAÇÃO - LANÇAMENTO, ADENSAMENTO E ACABAMENTO. AF_12/2015","M3",0.47,27,496.42,523.41999999999996,0.2223,639.78,15.51,285.18,300.69]
[null,"5.2","Composição SINAPI",92456,"MONTAGEM E DESMONTAGEM DE FÔRMA DE VIGA, ESCORAMENTO METÁLICO, PÉ-DIREITO SIMPLES, EM CHAPA DE MADEIRA RESINADA, 4 UTILIZAÇÕES. AF_09/2020","M2",6.22,58.68,76.95999999999998,135.63999999999999,0.2223,165.79,446.13,585.1,1031.23]
[null,"5.3","Composição SINAPI",92419,"MONTAGEM E DESMONTAGEM DE FÔRMA DE PILARES RETANGULARES E ESTRUTURAS SIMILARES, PÉ-DIREITO SIMPLES, EM CHAPA DE MADEIRA COMPENSADA RESINADA, 4 UTILIZAÇÕES. AF_09/2020","M2",3.12,34.64,51.3,85.94,0.2223,105.04,132.1,195.64,327.74]
[null,"5.4","Composição SINAPI",92759,"ARMAÇÃO DE PILAR OU VIGA DE UMA ESTRUTURA CONVENCIONAL DE CONCRETO ARMADO EM UM EDIFÍCIO DE MÚLTIPLOS PAVIMENTOS UTILIZANDO AÇO CA-60 DE 5,0 MM - MONTAGEM. AF_12/2015","KG",11.17,4.45,11.120000000000001,15.57,0.2223,19.03,60.76,151.82,212.57999999999998]
[null,"5.5","Composição SINAPI",92761,"ARMAÇÃO DE PILAR OU VIGA DE UMA ESTRUTURA CONVENCIONAL DE CONCRETO ARMADO EM UM EDIFÍCIO DE MÚLTIPLOS PAVIMENTOS UTILIZANDO AÇO CA-50 DE 8,0 MM - MONTAGEM. AF_12/2015","KG",13.91,1.93,11.780000000000001,13.71,0.2223,16.760000000000002,32.81,200.29,233.1]
[null,"5.6","Composição SINAPI",92762,"ARMAÇÃO DE PILAR OU VIGA DE UMA ESTRUTURA CONVENCIONAL DE CONCRETO ARMADO EM UM EDIFÍCIO DE MÚLTIPLOS PAVIMENTOS UTILIZANDO AÇO CA-50 DE 10,0 MM - MONTAGEM. AF_12/2015","KG",25.39,1.27,10.96,12.23,0.2223,14.95,39.409999999999997,340.13,379.53999999999996]
[null,"5.7","Composição Adaptada","COMP.15","ENSAIO DE RESISTÊNCIA A COMPRESSÃO SIMPLES - CONCRETO E/OU GROUT","UD",2,156.02000000000001,8.69,164.72,0.2223,201.34,381.41,21.24,402.65000000000003]
[null,null,null,null,null,null,null,null,null,null,"Total item 5",1162.6899999999998,1108.1299999999999,1779.3999999999999,2887.53]
[null,6,null,null,"PAREDES / PAINÉIS / DIVISÓRIAS"]
[null,"6.1","Composição SINAPI",103324,"ALVENARIA DE VEDAÇÃO DE BLOCOS CERÂMICOS FURADOS NA VERTICAL DE 14X19X39 CM (ESPESSURA 14 CM) E ARGAMASSA DE ASSENTAMENTO COM PREPARO EM BETONEIRA. AF_12/2021","M2",8,29.27,51.25,80.52,0.2223,98.42,286.20999999999998,501.14,787.34999999999991]
[null,"6.2","Composição Adaptada","COMP.17","FORNECIMENTO E INSTALAÇÃO DE SISTEMA DE BRISE FORMADO POR PAINEIS EM ALUZINC PINTADOS EM LINHA CONTÍNUA. ESPESSURA DE LÂMINA DE 0,4MM COM ACABAMENTO LISO. PASSO PADRÃO DE 34MM ENTRE LÂMINAS. PAINEIS NA COR AZUL (PADRÃO SENAC). MODELO CELOSIA C403E LISO ALUZINC FABRICANTE HUNTER DOUGLAS OU EQUIVALENTE TÉCNICO. ESTRUTURA PARA FIXAÇÃO ENCONTRA-SE ORÇADA NO ITEM ESTRUTURA METÁLICA, CONFORME PROJETO ESPECÍFICO.","M2",79.2,370.96,865.58,1236.54,0.2223,1511.42,35911.21,83793.48,119704.69]
[null,null,null,null,"","",null,"","","","Total item 6",1609.8400000000001,36197.42,84294.62,120492.04000000001]
[null,7,null,null,"ESTRUTURA METÁLICA PARA ADEQUAÇÃO ESCADAS","",null,"","",""]
[null,"7.1","Composição Adaptada","COMP.18","ESTRUTURA METÁLICA EM AÇO ESTRUTURAL (ESTRUTURA DE REFORÇO E READEQUAÇÃO DE ESCADA METÁLICA E ESTRUTURA DO ELEVADOR E DE FIXAÇÃO DOS BRISES). INCLUSO CHUMBADORES E PARAFUSOS CONFORME DETALHAMENTOS. A ESTRUTURA DEVERÁ RECEBER PINTURA COM TINTA ALQUÍDICA DE FUNDO (TIPO ZARCÃO) PULVERIZADA SOBRE PERFIL METÁLICO EXECUTADO EM FÁBRICA, BEM COMO TODA A ESTRUTURA DEVERÁ RECEBER PINTURA DE EPÓXI NA COR PADRÃO SENAC, EM EMULSÃO AQUOSA MONOCOMPONENTE, ACABAMENTO LISO, APLICADO COM PISTOLA DE ALTA PRESSÃO. CONFORMEPROJETO ESTRUTURAL METÁLICO.","KG",1695.74,1.4,17.55,18.95,0.2223,23.16,2901.78,36375.94,39277.72]
[null,"7.2","Composição Adaptada","COMP.19","FORNECIMENTO E INSTALAÇÃO DE CHAPA XADREZ ESPESSURA CONFORME PROJETO ESTRUTURAL. CHAPA DE PISO DA ESCADA E PATAMARES, CONFORME DETALHAMENTO EM PROJETO. INCLUSO PARAFUSOS E SOLDAS CONFORME PROJETO ESTRUTURAL.","KG",2155.52,1.44,17.86,19.29,0.2223,23.58,3793.96,47055.6,50849.56]
[null,null,null,null,null,null,null,null,null,null,"Total item 7",46.739999999999995,6695.74,83431.540000000008,90127.28]
[null,8,null,null,"COBERTURA","",null,"","",""]
[null,"8.1","Composição Adaptada","COMP.33","FORNECIMENTO E INSTALAÇÃO DE TELHA TERMOISOLANTE REVESTIDA EM ACO GALVALUME, FACE SUPERIOR TRAPEZOIDAL E FACE INFERIOR PLANA INCLUSO ACESSÓRIOS DE FIXACAO, REVEST COM ESPESSURA DE 0,50 MM, COM PRE-PINTURA DE COR BRANCA NAS DUAS FACES, NUCLEO EM POLIIOCIANURATO (PIR) COM ESPESSURA DE 50 MM          ","M2",36.5,2.4500000000000002,269.27,271.72000000000003,0.2223,332.12,109.3,12013.2,12122.5]
[null,"8.2","Composição Adaptada","COMP.34","CUMEEIRA EM GALVALUME PARA TELHA METÁLICA TRAPEZIO 40 PRÉ PINTADA NA COR BRANCA, INCLUSO ACESSÓRIOS DE FIXAÇÃO E IÇAMENTO.","M",8.9,4.12,135.47,139.59,0.2223,170.62,44.82,1473.71,1518.53]
[null,null,null,null,null,null,null,null,null,null,"Total item 8",502.74,154.12,13486.91,13641.03]
[null,9,null,null,"ESQUADRIAS DE ALUMÍNIO (PORTAS E JANELAS)"]
[null,"9.1","Composição Adaptada","COMP.28","FORNECIMENTO E INSTALAÇÃO DE PORTA EM ALUMÍNIO ANODIZADO NA COR MARROM, COM 2 FOLHAS DE ABRIR E 2 FOLHAS FIXAS, 2,30X2,10M, COM VIDRO LAMINADO INCOLOR 4MM + PVB + 4MM. PORTA DEVERÁ SEGUIR O PADRÃO DAS ESQUADRIAS EXISTENTES E QUE SERÃO MANTIDAS NA REFORMA. INCLUSO TRILHO DE FIXAÇÃO,  FERRAGENS, FECHADURAS E PUXADORES (PJ2).","UD",1,56.68,10435.42,10492.1,0.2223,12824.49,69.28,12755.21,12824.49]
[null,"9.2","Composição Adaptada","COMP.29","FORNECIMENTO E INSTALAÇÃO DE JANELA EM ALUMÍNIO ANODIZADO NA COR MARROM, COM 5 FOLHAS FIXAS, 3,80X2,10M, COM VIDRO LAMINADO INCOLOR 4MM + PVB + 4MM. JANELA DEVERÁ SEGUIR O PADRÃO DAS ESQUADRIAS EXISTENTES E QUE SERÃO MANTIDAS NA REFORMA. INCLUSO TRILHO DE FIXAÇÃO E FERRAGENS (J6).","UD",1,189.29,14050.8,14240.09,0.2223,17405.66,231.37,17174.29,17405.66]
[null,"9.3","Composição Adaptada","COMP.30","FORNECIMENTO E INSTALAÇÃO DE JANELA EM ALUMÍNIO ANODIZADO NA COR MARROM, COM 4 FOLHAS FIXAS, 4,35X2,10M, COM VIDRO LAMINADO INCOLOR 4MM + PVB + 4MM. JANELA DEVERÁ SEGUIR O PADRÃO DAS ESQUADRIAS EXISTENTES E QUE SERÃO MANTIDAS NA REFORMA. INCLUSO TRILHO DE FIXAÇÃO E FERRAGENS (J7).","UD",1,216.69,16084.47,16301.16,0.2223,19924.91,264.86,19660.05,19924.91]
[null,"9.4","Composição Adaptada","COMP.31","FORNECIMENTO E INSTALAÇÃO DE JANELA EM ALUMÍNIO ANODIZADO NA COR MARROM, COM 1 FOLHA FIXA, 0,90X2,10M, COM VIDRO LAMINADO INCOLOR 4MM + PVB + 4MM. JANELA DEVERÁ SEGUIR O PADRÃO DAS ESQUADRIAS EXISTENTES E QUE SERÃO MANTIDAS NA REFORMA. INCLUSO TRILHO DE FIXAÇÃO E FERRAGENS (J8).","UD",2,44.83,3327.82,3372.65,0.2223,4122.3900000000003,109.59,8135.19,8244.7799999999988]
[null,null,null,null,null,null,null,null,null,null,"Total item 9",54277.45,675.1,57724.740000000005,58399.839999999997]
[null,10,null,null,"GUARDA CORPO E CORRIMÃO"]
[null,"10.1","Composição Adaptada","COMP.20","GUARDA-CORPO COM CORRIMÃO EM AÇO GALVANIZADO DE 1,10M, MONTANTES TUBULARES DE 1.1/4\" ESPAÇADOS DE 1,20M, TRAVESSA SUPERIOR DE 1.1/2\", GRADIL FORMADO POR TUBOS HORIZONTAIS DE 1\" E VERTICAIS DE 3/4\", FIXADO CONFORME PROJETO ESPECÍFICO. FORNECIMENTO E INSTALAÇÃO. A ESTRUTURA DEVERÁ RECEBER PINTURA COM TINTA ALQUÍDICA DE FUNDO (TIPO ZARCÃO) PULVERIZADA SOBRE PERFIL METÁLICO EXECUTADO EM FÁBRICA, BEM COMO TODA A ESTRUTURA DEVERÁ RECEBER PINTURA DE EPÓXI NA COR PADRÃO SENAC, EM EMULSÃO AQUOSA MONOCOMPONENTE, ACABAMENTO LISO, APLICADO COM PISTOLA DE ALTA PRESSÃO.","M",33.840000000000003,220.02,468.38,688.4,0.2223,841.43,9100.61,19373.43,28474.04]
[null,null,null,null,null,null,null,null,null,null,"Total item 10",841.43,9100.61,19373.43,28474.04]
[null,11,null,null,"IMPERMEABILIZAÇÃO"]
[null,"11.1","Composição SINAPI",98547,"IMPERMEABILIZAÇÃO DE SUPERFÍCIE COM MANTA ASFÁLTICA, DUAS CAMADAS, INCLUSIVE APLICAÇÃO DE PRIMER ASFÁLTICO, E=3MM E E=4MM. AF_06/2018","M2",14.4,38.61,166.26999999999998,204.88,0.2223,250.42,679.58,2926.54,3606.12]
[null,"11.2","Composição SINAPI",98565,"PROTEÇÃO MECÂNICA DE SUPERFICIE HORIZONTAL COM ARGAMASSA DE CIMENTO E AREIA, TRAÇO 1:3, E=3CM. AF_06/2018","M2",4,25.37,27.34,52.71,0.2223,64.430000000000007,124.04,133.66999999999999,257.70999999999998]
[null,"11.3","Composição SINAPI",98566,"PROTEÇÃO MECÂNICA DE SUPERFÍCIE VERTICAL COM ARGAMASSA DE CIMENTO E AREIA, TRAÇO 1:3, E=3CM. AF_06/2018","M2",10.4,26.67,41.510000000000005,68.180000000000007,0.2223,83.34,339.03,527.66999999999996,866.69999999999993]
[null,null,null,null,null,null,null,null,null,null,"Total item 11",398.19000000000005,1142.6500000000001,3587.88,4730.53]
[null,12,null,null,"INSTALAÇÕES ELÉTRICAS"]
[null,"12.1",null,null,"ELETRODUTOS CONEXÕES E CAIXAS DE PASSAGEM"]
[null,"12.1.1","Composição SINAPI",95748,"ELETRODUTO DE AÇO GALVANIZADO, CLASSE SEMI PESADO, DN 40 MM (1 1/2 ), APARENTE, INSTALADO EM TETO - FORNECIMENTO E INSTALAÇÃO. AF_11/2016_P","M",15.6,11.17,40.159999999999997,51.33,0.2223,62.74,212.99,765.77,978.76]
[null,"12.1.2","Composição SINAPI",95760,"LUVA DE EMENDA PARA ELETRODUTO, AÇO GALVANIZADO, DN 40 MM (1 1/2''), APARENTE, INSTALADA EM PAREDE - FORNECIMENTO E INSTALAÇÃO. AF_11/2016_P","UN",6,10.31,10.39,20.7,0.2223,25.3,75.61,76.2,151.81]
[null,"12.1.3","Composição Adaptada","COMP.43","CURVA 90 GRAUS PARA ELETRODUTO, AÇO GALVANIZADO, DN 40 MM (1 1/4\"), PARA CIRCUITOS TERMINAIS, INSTALADA EM PAREDE - FORNECIMENTO E INSTALAÇÃO.","UD",3,13.58,27.08,40.659999999999997,0.2223,49.7,49.8,99.3,149.1]
[null,"12.1.4","Composição SINAPI",95750,"ELETRODUTO DE AÇO GALVANIZADO, CLASSE LEVE, DN 25 MM (1\u0092\u0092), APARENTE, INSTALADO EM PAREDE - FORNECIMENTO E INSTALAÇÃO. AF_11/2016_P","M",12.6,12.75,23.08,35.83,0.2223,43.8,196.36,355.45,551.80999999999995]
[null,"12.1.5","Composição SINAPI",95758,"LUVA DE EMENDA PARA ELETRODUTO, AÇO GALVANIZADO, DN 25 MM (1''), APARENTE, INSTALADA EM PAREDE - FORNECIMENTO E INSTALAÇÃO. AF_11/2016_P","UN",4,7.93,5.35,13.28,0.2223,16.23,38.770000000000003,26.16,64.930000000000007]
[null,"12.1.6","Composição Adaptada","COMP.35","PERFILADO 38 X 38, GALVANIZADO A FOGO, INCLUINDO TODOS OS ACESSÓRIOS, SUPORTES, TIRANTES, PARAFUSOS, BUCHAS, PORCAS, ARRUELAS, CONEXÕES, DERIVAÇÕES, PORTA BOX E BOX DE SAÍDA PARA ELETRODUTOS. CEMAR OU SIMILAR. ","M",10.1,10.88,4.01,14.89,0.2223,18.2,134.32,49.5,183.82]
[null,"12.1.7","Composição Adaptada","COMP.36","CAIXA DE PASSAGEM PARA 30X30X10CM (SOBREPOR), FORNECIMENTO E INSTALACAO","UD",3,15.06,87.16,102.22,0.2223,124.94,55.22,319.61,374.83000000000004]
[null,"12.2",null,null,"QUADROS E CAIXAS DE DISTRIBUIÇÃO"]
[null,"12.2.1","Composição Adaptada","COMP.37","QUADRO DE DISTRIBUIÇÃO METÁLICO. CONFORME NBR IEC 60439-3, SOBREPOR - BRANCO, MONTAGEM EM TRILHO, TRIFÁSICO, COM BARRAMENTOS PARA NEUTRO (N) E PARA CONDUTOR DE PROTEÇÃO (PE) - TERRA, PARA CORRENTE NOMINAL DE 100A, COM DIMENSÕES EQUIVALENTES - CONSIDERANDO ESPAÇO RESERVA DE MÍNIMO CONFORME DIAGRAMAS, (QD-ELEVADOR), REFERÊNCIA HEADING, SCHNEIDER, ABB, CEMAR, BRUSAMOLIN OU SIMILAR. EM SEU INTERIOR DEVEM SER INSTALADOS: 1 DISJUNTOR TRIPOLAR DE 40A (GERAL) COM CORRENTE MÁXIMA DE INTERRUPÇÃO IEC 947-2 - ICU (MÍNIMO) 5 KA (220/127V), 1 DISJUNTOR TRIPOLAR DE 40A COM CORRENTE MÁXIMA DE INTERRUPÇÃO IEC 947-2 - ICU (MÍNIMO) 5 KA (220/127V), 2 DISJUNTORES MONOPOLAR DE 10A COM CORRENTE MÁXIMA DE INTERRUPÇÃO IEC 947-2 - ICU (MÍNIMO) 5 KA (220/127V), 4 DISPOSITIVOS DPS CLASSE-I 175V 8KA. QUADRO DEVERÁ POSSUIR FECHO RÁPIDO PARA TAMPA E CONTRA TAMPA. CONTRA TAMPA EM POLICARBONATO TRANSPARENTE. COM PLACAS DE IDENTIFICAÇÃO INTERNA/EXTERNA. COM ATENDIMENTO A NR-10.","UD",1,370.97,906.25,1277.22,0.2223,1561.15,453.44,1107.71,1561.15]
[null,"12.2.2","Composição Adaptada","COMP.38","ADAPTAÇÃO EM QUADRO DE LUZ EXISTENTE (QGBT2 - SUBESTAÇÃO), PARA INSTALAÇÃO DO CIRCUITO TRIFÁSICO DE ALIMENTAÇÃO DO QUADRO DE DISTRIBUIÇÃO METÁLICO DE ALIMENTAÇÃO ELEVADOR (QD-ELEVADOR). FORNECIMENTO E INSTALAÇÃO DO DISJUNTOR DE PROTEÇÃO NO INTERIOR DO QUADRO QGBT2, ALÉM DA ADAPTAÇÃO DO BARRAMENTO PARA INSTALAÇÃO DO DISPOSITIVO.","UD",1,322.37,333.21,655.58,0.2223,801.32,394.03,407.28,801.31]
[null,"12.2.3","Composição SINAPI",95796,"CONDULETE DE ALUMÍNIO, TIPO T, PARA ELETRODUTO DE AÇO GALVANIZADO DN 25 MM (1''), APARENTE - FORNECIMENTO E INSTALAÇÃO. AF_11/2016_P","UN",5,20.39,28.4,48.79,0.2223,59.64,124.61,173.57,298.18]
[null,"12.3",null,null,"FIOS E CABOS PARA INSTALAÇÕES"]
[null,"12.3.1","Composição SINAPI",91927,"CABO DE COBRE FLEXÍVEL ISOLADO, 2,5 MM², ANTI-CHAMA 0,6/1,0 KV, PARA CIRCUITOS TERMINAIS - FORNECIMENTO E INSTALAÇÃO. AF_12/2015","M",147.4,1.29,3.5199999999999996,4.8099999999999996,0.2223,5.88,232.42,634.19000000000005,866.61]
[null,"12.3.2","Composição SINAPI",91933,"CABO DE COBRE FLEXÍVEL ISOLADO, 10 MM², ANTI-CHAMA 0,6/1,0 KV, PARA CIRCUITOS TERMINAIS - FORNECIMENTO E INSTALAÇÃO. AF_12/2015","M",79.599999999999994,3.34,12.3,15.64,0.2223,19.12,324.97000000000003,1196.73,1521.7]
[null,"12.3.3","Composição SINAPI",91935,"CABO DE COBRE FLEXÍVEL ISOLADO, 16 MM², ANTI-CHAMA 0,6/1,0 KV, PARA CIRCUITOS TERMINAIS - FORNECIMENTO E INSTALAÇÃO. AF_12/2015","M",176.5,5,19.440000000000001,24.44,0.2223,29.87,1078.68,4193.91,5272.59]
[null,"12.4",null,null,"TOMADAS, INTERRUPTORES E ESPELHOS"]
[null,"12.4.1","Composição SINAPI",92029,"INTERRUPTOR PARALELO (1 MÓDULO) COM 1 TOMADA DE EMBUTIR 2P+T 10 A,  INCLUINDO SUPORTE E PLACA - FORNECIMENTO E INSTALAÇÃO. AF_12/2015","UN",2,27.21,32.949999999999996,60.16,0.2223,73.53,66.52,80.55,147.07]
[null,"12.5",null,null,"LUMINÁRIAS E EQUIPAMENTOS"]
[null,"12.5.1","Composição SINAPI",97607,"LUMINÁRIA ARANDELA TIPO TARTARUGA, DE SOBREPOR, COM 1 LÂMPADA LED DE 6 W, SEM REATOR - FORNECIMENTO E INSTALAÇÃO. AF_02/2020","UN",2,17.93,102.36000000000001,120.29,0.2223,147.03,43.83,250.23,294.06]
[null,null,null,null,null,null,null,null,null,null,"Total item 12",3038.4500000000003,3481.57,9736.16,13217.73]
[null,13,null,null,"REVESTIMENTO DE PAREDES EXTERNAS"]
[null,"13.1","Composição SINAPI",87905,"CHAPISCO APLICADO EM ALVENARIA (COM PRESENÇA DE VÃOS) E ESTRUTURAS DE CONCRETO DE FACHADA, COM COLHER DE PEDREIRO.  ARGAMASSA TRAÇO 1:3 COM PREPARO EM BETONEIRA 400L. AF_06/2014","M2",10.4,6.39,3.4300000000000006,9.82,0.2223,12,81.23,43.6,124.83000000000001]
[null,"13.2","Composição SINAPI",87775,"EMBOÇO OU MASSA ÚNICA EM ARGAMASSA TRAÇO 1:2:8, PREPARO MECÂNICO COM BETONEIRA 400 L, APLICADA MANUALMENTE EM PANOS DE FACHADA COM PRESENÇA DE VÃOS, ESPESSURA DE 25 MM. AF_06/2014","M2",10.4,30.74,24.030000000000005,54.77,0.2223,66.95,390.76,305.47000000000003,696.23]
[null,null,null,null,null,null,null,null,null,null,"Total item 13",78.95,471.99,349.07000000000005,821.06000000000006]
[null,14,null,null,"SOLEIRAS EM GRANITO"]
[null,"14.1","Composição Adaptada","COMP.21","FORNECIMENTO E INSTALAÇÃO DE SOLEIRAS EM GRANITO BRANCO SIENA POLIDO, E=2CM, FIXADA COM ARGAMASSA - CONFORME PROJETO DE PAGINAÇÃO DE PISOS E DETALHE ARQUITETÔNICO","M",14.6,19.510000000000002,165.1,184.6,0.2223,225.64,348.17,2946.31,3294.48]
[null,null,null,null,null,null,null,null,null,null,"Total item 14",225.64,348.17,2946.31,3294.48]
[null,15,null,null,"LASTROS E PISOS"]
[null,"15.1","Composição SINAPI",94438,"(COMPOSIÇÃO REPRESENTATIVA) DO SERVIÇO DE CONTRAPISO EM ARGAMASSA TRAÇO 1:4 (CIM E AREIA), EM BETONEIRA 400 L, ESPESSURA 3 CM ÁREAS SECAS E 3 CM ÁREAS MOLHADAS, PARA EDIFICAÇÃO HABITACIONAL UNIFAMILIAR (CASA) E EDIFICAÇÃO PÚBLICA PADRÃO. AF_11/2014","M2",19.899999999999999,15.75,26.439999999999998,42.19,0.2223,51.57,383.1,643.12,1026.22]
[null,"15.2","Composição SINAPI",88476,"CONTRAPISO COM ARGAMASSA AUTONIVELANTE, APLICADO SOBRE LAJE, ADERIDO, ESPESSURA 2CM. AF_07/2021","M2",19.899999999999999,1.71,17.32,19.03,0.2223,23.26,41.59,421.29,462.88]
[null,"15.3","Composição SINAPI",98685,"RODAPÉ EM GRANITO, ALTURA 10 CM. AF_09/2020","M",3.2,10.78,82.7,93.48,0.2223,114.26,42.16,323.47000000000003,365.63]
[null,"15.4","Composição Adaptada","COMP.22","PISO EM GRANITO LEVIGADO 30X30CM COR BRANCO DALLAS, ASSENTADO COM ARGAMASSA COLANTE E REJUNTAMENTO.","M2",19.899999999999999,42.88,468.6,511.48,0.2223,625.17999999999995,1043,11398.12,12441.12]
[null,"15.5","Composição Adaptada","COMP.23","PISO EM GRANITO COR BRANCO DALLAS, ASSENTADO COM ARGAMASSA COLANTE E REJUNTAMENTO, PARA ÁREA DA CABINA DOS ELEVADORES","M2",3.42,42.88,468.6,511.48,0.2223,625.17999999999995,179.25,1958.87,2138.12]
[null,null,null,null,null,null,null,null,null,null,"Total item 15",1439.4499999999998,1689.1,14744.869999999999,16433.97]
[null,16,null,null,"PINTURA DE PISOS, PAREDES E TETOS"]
[null,"16.1","Composição SINAPI",88485,"APLICAÇÃO DE FUNDO SELADOR ACRÍLICO EM PAREDES, UMA DEMÃO. AF_06/2014","M2",10,1.19,1.96,3.15,0.2223,3.85,14.55,23.96,38.510000000000005]
[null,"16.2","Composição SINAPI",88489,"APLICAÇÃO MANUAL DE PINTURA COM TINTA LÁTEX ACRÍLICA EM PAREDES, DUAS DEMÃOS. AF_06/2014","M2",10,5.72,10.670000000000002,16.39,0.2223,20.03,69.92,130.41999999999999,200.33999999999997]
[null,"16.3","Composição SINAPI",88497,"APLICAÇÃO E LIXAMENTO DE MASSA LÁTEX EM PAREDES, DUAS DEMÃOS. AF_06/2014","M2",10,9.52,11.27,20.79,0.2223,25.41,116.36,137.75,254.11]
[null,"16.4","Composição SINAPI",102488,"PREPARO DO PISO CIMENTADO PARA PINTURA - LIXAMENTO E LIMPEZA. AF_05/2021","M2",14.4,3.07,0.91000000000000014,3.98,0.2223,4.8600000000000003,54.04,16.02,70.06]
[null,"16.5","Composição SINAPI",102491,"PINTURA DE PISO COM TINTA ACRÍLICA, APLICAÇÃO MANUAL, 2 DEMÃOS, INCLUSO FUNDO PREPARADOR. AF_05/2021","M2",14.4,8.64,12.149999999999999,20.79,0.2223,25.41,152.07,213.85,365.91999999999996]
[null,"16.6","Composição SINAPI",100717,"LIXAMENTO MANUAL EM SUPERFÍCIES METÁLICAS EM OBRA. AF_01/2020","M2",70,7.25,3.84,11.09,0.2223,13.56,620.32000000000005,328.55,948.87000000000012]
[null,"16.7","Composição SINAPI",100720,"PINTURA COM TINTA ALQUÍDICA DE FUNDO (TIPO ZARCÃO) APLICADA A ROLO OU PINCEL SOBRE PERFIL METÁLICO EXECUTADO EM FÁBRICA (POR DEMÃO). AF_01/2020","M2",70,5.2,5.839999999999999,11.04,0.2223,13.49,444.92,499.68,944.6]
[null,"16.8","Composição SINAPI",100728,"PINTURA COM TINTA EPOXÍDICA DE FUNDO APLICADA A ROLO OU PINCEL SOBRE PERFIL METÁLICO EXECUTADO EM FÁBRICA (POR DEMÃO). AF_01/2020","M2",70,5.2,17.82,23.02,0.2223,28.14,444.92,1524.7,1969.6200000000001]
[null,"16.9","Composição SINAPI",100730,"PINTURA COM TINTA EPOXÍDICA DE ACABAMENTO APLICADA A ROLO OU PINCEL SOBRE PERFIL METÁLICO EXECUTADO EM FÁBRICA (POR DEMÃO). AF_01/2020","M2",70,5.2,17.470000000000002,22.67,0.2223,27.71,444.92,1494.75,1939.67]
[null,null,null,null,null,null,null,null,null,null,"Total item 16",162.46,2362.02,4369.68,6731.7]
[null,17,null,null,"ELEVADOR"]
[null,"17.1","Composição Adaptada","COMP.24","FORNECIMENTO E INSTALAÇÃO  DE ELEVADOR SEM CASA DE MÁQUINAS, COMPATÍVEL COM A NM 207, CAPACIDADE 9 PESSOAS OU 675 KG, VELOCIDADE 1 M/SEG, NÚMERO DE PARADAS 2, PERCURSO 10,07M, DIMENSÕES DA CAIXA DE CORRIDA 1,74X1,80M, ÚLTIMA ALTURA 4,40M, ALTURA DO POÇO 1,30M, DIMENSÕES MÍNIMAS DAS PORTAS 900MM LARGURA E 2100MM DE ALTURA. ACABAMENTO EM AÇO INOX ESCOVADO. A CABINA MODELO SCHINDLER 3000 NAVONA OFERECE UM CONJUNTO EXCLUSIVO, CONFORME ILUSTRADO NO CATÁLOGO DE APRESENTAÇÃO DO PRODUTO. A BOTOEIRA DE COMANDO TEM ACIONAMENTO ELETRÔNICO DE CHAMADAS ILUMINADAS POR LED. QUANDO DESTINADO AO TRANSPORTE DE PASSAGEIROS COM NECESSIDADES ESPECIAIS, O ESPELHO E CORIMÃO SERÃO POSICIONADOS PARA ATENDER A LEGISLAÇÃO VIGENTE. ACABAMENTO DOS PAINEIS EM AÇO INOXIDÁVEL, PAINEL FRONTAL E PORTA EM AÇO INOX ESCOVADO. TETO EM AÇO INOX ESCOVADO E LÂMPADAS LED E PROPORCIONA UMA ILUMINAÇÃO EQUILIBRADA EM TODO O AMBIENTE. CORRIMÃO POSICIONADO NO PAINEL DE FUNDO, LATERAL DIREITA E LATERAL ESQUERDA EM AÇO INOX ESCOVADO COM DIÂMTRO DE 35MM. ACABAMENTO DA PORTA DA CABINA  EM AÇO INOXIDÁVEL. FECHAMENTOS FRONTAIS, LATERAIS E FUNDOS (OBRA CIVIL) EM BRISE, DE ACORDO COM PROJETO ARQUITETÔNICO E ESTRUTURAL. DEVERÁ POSSUIR CORTINA LUMINOSA PARA INTERROMPER O FEHAMENTO DA PORTA EM CASO DE PESSOA OU OBJETO ENTRANDO OU SAÍNDO DA CABINA. SISTEMA DE RESGATE AUTOMÁTICO QUE EM CASO DA FALTA DE ENERGIA CONDUZ A CABINA ATÉ O PRÓXIMO PAVIMENTO E ABERTURA DAS PORTAS LIBERANDO OS PASSAGEIROS. REF.: ATLAS SCHINDLER 3000 OU EQUIVALENTE TÉCNICO.","UD",1,45000,105000,150000,0.2223,183345,55003.5,128341.5,183345]
[null,"17.2","Composição Adaptada","COMP.42","FORNECIMENTO E INSTALAÇÃO  DE ELEVADOR SEM CASA DE MÁQUINAS (MODERNIZAÇÃO), COMPATÍVEL COM A NM 207, CAPACIDADE 9 PESSOAS OU 675 KG, VELOCIDADE 0,75 M/SEG, NÚMERO DE PARADAS 5, PERCURSO 13,98M, DIMENSÕES DA CAIXA DE CORRIDA 1,75X1,98M, ÚLTIMA ALTURA 4,39M, ALTURA DO POÇO 1,50M, DIMENSÕES MÍNIMAS DAS PORTAS 800MM LARGURA E 2000MM DE ALTURA. ACABAMENTO EM AÇO INOX ESCOVADO. A CABINA MODELO SCHINDLER 3000  OFERECE UM CONJUNTO EXCLUSIVO, CONFORME ILUSTRADO NO CATÁLOGO DE APRESENTAÇÃO DO PRODUTO. A BOTOEIRA DE COMANDO TEM ACIONAMENTO ELETRÔNICO DE CHAMADAS ILUMINADAS POR LED. QUANDO DESTINADO AO TRANSPORTE DE PASSAGEIROS COM NECESSIDADES ESPECIAIS, O ESPELHO E CORRIMÃO SERÃO POSICIONADOS PARA ATENDER A LEGISLAÇÃO VIGENTE. ACABAMENTO DOS PAINEIS EM AÇO INOXIDÁVEL, PAINEL FRONTAL E PORTA EM AÇO INOX ESCOVADO. TETO EM AÇO INOX ESCOVADO E LÂMPADAS LED E PROPORCIONA UMA ILUMINAÇÃO EQUILIBRADA EM TODO O AMBIENTE. CORRIMÃO POSICIONADO NO PAINEL DE FUNDO, LATERAL DIREITA E LATERAL ESQUERDA EM AÇO INOX ESCOVADO COM DIÂMTRO DE 35MM. ACABAMENTO DA PORTA DA CABINA COM MOLDURA EM AÇO INOXIDÁVEL. FECHAMENTOS FRONTAIS, LATERAIS E FUNDOS (OBRA CIVIL) DE ACORDO COM CONDIÇÕES EXISTENTES PARA MODERNIZAÇÃO. DEVERÁ POSSUIR CORTINA LUMINOSA PARA INTERROMPER O FEHAMENTO DA PORTA EM CASO DE PESSOA OU OBJETO ENTRANDO OU SAÍNDO DA CABINA. SISTEMA DE RESGATE AUTOMÁTICO QUE EM CASO DA FALTA DE ENERGIA CONDUZ A CABINA ATÉ O PRÓXIMO PAVIMENTO E ABERTURA DAS PORTAS LIBERANDO OS PASSAGEIROS. REF.: ATLAS SCHINDLER 3O00 OU EQUIVALENTE TÉCNICO.","UD",1,60900,142100,203000,0.2223,248126.9,74438.070000000007,173688.83,248126.9]
[null,null,null,null,null,null,null,null,null,null,"Total item 17",431471.9,129441.57,302030.32999999996,431471.9]
[null,18,null,null,"LIMPEZA FINAL"]
[null,"18.1","Composição Adaptada","COMP.25","LIMPEZA FINAL DA OBRA","M2",57.2,2.41,1.64,4.05,0.2223,4.95,168.5,114.66,283.15999999999997]
[null,null,null,null,null,null,null,null,null,null,"Total item 18",4.95,168.5,114.66,283.15999999999997]
[null,null,null,null,null,null,null,null,null,null,null,"TOTAIS",224048.31999999998,684018.33000000007,908066.62999999989]
[null,null,null,null,null,null,null,null,null,null,null,"TOTAL REFERÊNCIAL"]